bitfinex/quotes_ETHUSD_20250326
["timestamp","ask_amount","ask_price","bid_price","bid_amount"]
[1742964180023,8.3582,2059.3,2059.0,4.85672]
[1742964180224,0.28780301,2059.1,2059.0,4.85672]
[1742964180434,8.3582,2059.3,2059.0,4.85672]
[1742964180893,13.21424,2059.3,2058.9,10.9967662]
[1742964181094,0.28839265,2059.2,2058.9,15.8535662]
[1742964181405,13.21424,2059.3,2058.9,30.3535662]
[1742964181605,0.28800738,2059.1,2058.9,30.3535662]
[1742964181830,13.21424,2059.3,2059.0,4.85672]
[1742964182417,8.3582,2059.3,2059.0,4.85672]
[1742964182918,7.552,2059.3,2059.1,4.85645]
[1742964183235,0.2884381,2059.2,2059.1,4.85645]
[1742964183522,7.552,2059.3,2059.1,4.84688086]
[1742964183727,0.2884381,2059.2,2059.1,4.84688086]
[1742964184598,7.552,2059.3,2059.1,4.84688086]
[1742964184828,0.2884381,2059.2,2059.0,4.85672]
[1742964185035,2.86136678,2059.2,2058.9,4.85695]
[1742964185196,0.28805283,2059.1,2058.9,4.85695]
[1742964185602,0.28805283,2059.1,2059.0,4.85672]
[1742964186001,7.552,2059.3,2059.0,4.85672]
[1742964186201,0.28805283,2059.1,2059.0,4.85672]
[1742964186402,7.552,2059.3,2059.0,4.85672]
[1742964186628,0.28805283,2059.1,2059.0,4.85672]
[1742964186930,8.69322443,2059.3,2059.0,4.85672]
[1742964187111,0.28805283,2059.1,2059.0,4.85672]
[1742964187436,8.69322443,2059.3,2059.0,4.85672]
[1742964187637,0.28796208,2059.1,2059.0,4.85672]
[1742964187800,7.552,2059.3,2059.0,4.85672]
[1742964188156,0.28796208,2059.1,2059.0,4.85672]
[1742964188295,8.69322443,2059.3,2059.0,4.85672]
[1742964188499,0.28796208,2059.1,2059.0,4.85672]
[1742964188731,1.14122443,2059.2,2058.9,4.85684]
[1742964189036,0.28796208,2059.1,2058.9,9.71368]
[1742964191334,1.42918651,2059.1,2058.9,4.85684]
[1742964192305,1.42918651,2059.1,2058.8,10.9971662]
[1742964192506,1.42918651,2059.1,2058.8,4.85717]
[1742964194733,0.28796208,2059.1,2058.8,4.85717]
[1742964194936,0.28796208,2059.1,2058.9,4.8569]
[1742964195136,0.28796208,2059.1,2058.8,6.17665077]
[1742964195330,1.42918651,2059.1,2058.8,6.17665077]
[1742964196120,1.42918651,2059.1,2058.8,4.85702]
[1742964203916,1.42918651,2059.1,2058.8,9.71403]
[1742964204136,0.28796208,2059.1,2058.8,9.71403]
[1742964204446,0.28796208,2059.1,2058.8,4.85701]
[1742964205111,0.28796208,2059.1,2058.9,4.85683]
[1742964205314,0.28796208,2059.1,2059.0,27.38854063]
[1742964205721,5.69422443,2059.7,2059.4,4.85563]
[1742964205925,1.14122443,2059.6,2059.4,4.85563]
[1742964206120,1.43049889,2059.6,2059.3,4.85595]
[1742964207069,0.28927446,2059.6,2059.3,4.85595]
[1742964207271,2.03149803,2059.6,2059.3,4.85595]
[1742964207571,2.03149803,2059.6,2059.3,9.71176]
[1742964208061,2.03149803,2059.6,2059.3,4.85585]
[1742964208869,1.74222357,2059.6,2059.3,4.85585]
[1742964209070,0.28945794,2059.5,2059.3,4.85585]
[1742964209571,0.28945794,2059.5,2059.4,4.85578]
[1742964210876,0.29034419,2059.5,2059.4,4.85578]
[1742964211034,6.59032126,2059.7,2059.4,4.85578]
[1742964211363,0.29034419,2059.5,2059.4,4.85578]
[1742964211845,6.59032126,2059.7,2059.4,4.85578]
[1742964212047,0.29034419,2059.5,2059.3,4.85599]
[1742964212351,11.44545126,2059.7,2059.3,4.85599]
[1742964212557,0.28995902,2059.4,2059.3,4.85599]
[1742964213190,16.30072126,2059.7,2059.2,5.82623587]
[1742964213346,0.28995902,2059.4,2059.2,10.68232587]
[1742964213533,11.44545126,2059.7,2059.2,5.82609587]
[1742964213736,11.44545126,2059.7,2059.3,4.856]
[1742964214281,4.85541,2059.6,2059.2,4.85609]
[1742964214502,6.89287126,2059.5,2059.1,5.60706]
[1742964215079,6.89287126,2059.5,2059.1,4.85646]
[1742964215283,8.60625939,2059.5,2059.0,15.8531962]
[1742964215598,2.86992126,2059.3,2059.0,6.1399962]
[1742964215796,9.43888939,2059.5,2059.1,4.85645]
[1742964217202,4.85581,2059.4,2059.0,15.8531362]
[1742964217495,9.43888939,2059.5,2059.0,9.71314]
[1742964218896,9.43888939,2059.5,2059.1,4.85647]
[1742964219257,4.58330939,2059.5,2059.0,4.85655]
[1742964219457,9.43893939,2059.5,2059.1,4.85647]
[1742964219694,1.42942594,2059.4,2059.1,4.85647]
[1742964221394,7.72555126,2059.5,2059.1,4.85647]
[1742964221901,7.72555126,2059.5,2059.1,4.85632]
[1742964222701,2.86992126,2059.5,2059.2,4.85624]
[1742964222863,2.86992126,2059.5,2059.1,5.66762]
[1742964222864,7.72548126,2059.5,2059.1,10.52399]
[1742964223363,2.86992126,2059.5,2059.2,4.85622]
[1742964223565,7.72551126,2059.5,2059.1,5.66775]
[1742964224464,9.43889739,2059.5,2059.1,4.85645]
[1742964227004,1.14120696,2059.3,2059.1,4.85645]
[1742964227676,1.14120696,2059.4,2059.1,4.85645]
[1742964227887,1.14120696,2059.3,2059.1,4.85645]
[1742964228082,1.14120696,2059.4,2059.1,4.85645]
[1742964228288,1.14120696,2059.3,2059.1,4.85645]
[1742964230000,1.14120696,2059.3,2059.0,4.85672]
[1742964231503,1.14120696,2059.1,2058.8,4.85718]
[1742964231697,1.14120696,2059.0,2058.8,4.85704]
[1742964232099,1.14120696,2059.1,2058.8,4.85704]
[1742964233500,10.17796,2059.2,2058.8,9.71407]
[1742964233704,1.14120696,2059.1,2058.8,9.71411]
[1742964233909,1.14120696,2059.1,2058.8,4.85703]
[1742964234402,1.14120696,2059.1,2058.8,9.71404]
[1742964235607,11.31916696,2059.2,2058.8,9.71404]
[1742964236107,11.31916696,2059.2,2058.8,4.85701]
[1742964236582,11.31916696,2059.2,2058.8,9.71406]
[1742964236784,6.46290696,2059.2,2058.9,4.85695]
[1742964237198,5.3217,2059.2,2059.0,4.85651]
[1742964237377,5.3217,2059.2,2058.9,4.85693]
[1742964238505,1.62679596,2059.3,2059.0,4.85661]
[1742964238711,8.69320696,2059.3,2059.0,4.85661]
[1742964243820,8.69320696,2059.3,2058.9,5.61933]
[1742964243985,1.14120696,2059.2,2058.9,5.61933]
[1742964244184,1.14120696,2059.2,2058.9,4.85693]
[1742964244932,13.54922696,2059.3,2058.9,4.85693]
[1742964246525,1.14120696,2059.2,2058.8,9.71425]
[1742964247206,1.14120696,2059.2,2058.9,4.85693]
[1742964248800,13.54922696,2059.3,2058.9,4.85693]
[1742964251934,0.8182,2059.1,2058.8,4.85707]
[1742964252135,0.8182,2059.1,2058.8,4.85706]
[1742964253037,0.8182,2059.1,2058.9,4.85695]
[1742964253344,14.36745696,2059.3,2058.9,4.85695]
[1742964253503,16.28978166,2059.3,2058.9,4.85695]
[1742964256307,15.1485747,2059.3,2058.9,4.85695]
[1742964256511,0.8182,2059.5,2059.0,0.776]
[1742964256826,4.552,2059.4,2059.0,0.776]
[1742964257133,5.69320696,2059.4,2059.0,0.776]
[1742964257437,4.552,2059.4,2059.1,4.85646]
[1742964258238,4.552,2059.4,2059.1,4.85648]
[1742964258940,5.69320696,2059.4,2059.1,4.85648]
[1742964259241,4.552,2059.4,2059.1,4.85648]
[1742964262223,8.69320696,2059.4,2059.1,4.85648]
[1742964262433,7.552,2059.4,2059.1,4.85648]
[1742964270452,7.552,2059.4,2059.0,5.63262]
[1742964270962,7.552,2059.4,2059.0,10.48919]
[1742964271569,8.69320696,2059.4,2059.0,4.85657]
[1742964271863,8.69320696,2059.4,2059.0,9.71314]
[1742964273760,8.69320696,2059.4,2059.0,24.21314]
[1742964273922,0.28920857,2059.3,2059.0,24.21314]
[1742964274360,0.28920857,2059.3,2059.1,4.85646]
[1742964275435,0.28920857,2059.3,2059.1,5.62826]
[1742964275641,0.28920857,2059.3,2059.2,4.85625]
[1742964275964,0.28920857,2059.3,2059.1,5.62826]
[1742964276337,0.28920857,2059.3,2059.1,5.62819]
[1742964287007,0.28920857,2059.3,2059.2,4.85625]
[1742964288513,0.28920857,2059.3,2059.1,5.62819]
[1742964289314,0.28920857,2059.3,2059.1,0.7718]
[1742964289713,0.28920857,2059.3,2059.1,5.62817]
[1742964297527,0.28920857,2059.3,2059.1,4.85637]
[1742964301334,0.28920857,2059.3,2059.1,6.61738281]
[1742964301628,0.28920857,2059.3,2059.2,6.81121864]
[1742964301830,0.8202,2059.9,2059.6,4.85518]
[1742964302129,1.41018737,2059.8,2059.4,4.85555]
[1742964302436,1.14120696,2059.5,2059.3,6.1399962]
[1742964302730,0.26712362,2059.4,2059.3,6.1399962]
[1742964302932,0.26712362,2059.4,2059.2,4.85624]
[1742964303134,0.26712362,2059.4,2059.2,9.71229]
[1742964303634,0.26712362,2059.4,2059.3,4.85601]
[1742964305939,0.26712362,2059.4,2059.2,9.71219]
[1742964306440,1.14120696,2059.3,2059.0,6.1399962]
[1742964306641,2.58782802,2059.2,2058.8,9.71415]
[1742964306812,2.85127938,2059.2,2058.8,9.71415]
[1742964307012,2.85127938,2059.2,2058.9,4.85695]
[1742964307542,2.85127938,2059.2,2058.9,9.7139]
[1742964307740,1.14120696,2059.1,2058.8,4.85714]
[1742964308036,2.85127938,2059.2,2058.8,4.85714]
[1742964308357,1.14120696,2059.1,2058.8,4.85714]
[1742964308522,1.14120696,2059.0,2058.6,4.85761]
[1742964308837,1.14120696,2059.0,2058.7,4.85738]
[1742964309042,0.26120692,2058.9,2058.7,4.85738]
[1742964309944,2.2119499,2059.1,2058.7,4.85738]
[1742964310148,0.26073078,2058.8,2058.7,4.85738]
[1742964310440,1.90420696,2058.9,2058.7,4.85738]
[1742964310633,0.26073078,2058.8,2058.6,4.85754]
[1742964311443,0.26073078,2058.8,2058.5,11.96081285]
[1742964312241,0.26073078,2058.8,2058.5,16.81860285]
[1742964312752,0.26073078,2058.8,2058.6,4.85765]
[1742964313451,0.26073078,2058.8,2058.5,11.96082285]
[1742964314258,0.26073078,2058.8,2058.5,5.82082665]
[1742964315952,0.26073078,2058.8,2058.6,4.85766]
[1742964316153,0.26073078,2058.8,2058.5,10.67860665]
[1742964316342,0.26073078,2058.8,2058.5,5.82071665]
[1742964316648,0.26073078,2058.8,2058.5,4.85778]
[1742964317148,1.14120696,2058.6,2058.2,4.85838]
[1742964317353,0.763,2058.7,2058.4,4.85813]
[1742964317555,0.25913951,2058.5,2058.4,4.85813]
[1742964317847,0.763,2058.7,2058.4,4.85813]
[1742964318050,0.25913951,2058.5,2058.4,4.85813]
[1742964318253,1.14120696,2058.6,2058.3,4.85824]
[1742964318455,0.25913951,2058.5,2058.3,4.85824]
[1742964318820,0.25509135,2058.5,2058.4,4.85814]
[1742964319026,0.25509135,2058.5,2058.4,8.34676566]
[1742964319246,4.55,2059.0,2058.4,8.34676566]
[1742964319419,3.0,2058.9,2058.7,4.85739]
[1742964320361,3.0,2058.9,2058.7,19.35739]
[1742964320666,3.0,2058.9,2058.7,4.85739]
[1742964321165,0.25986776,2058.8,2058.6,19.35766]
[1742964322077,5.69120696,2059.0,2058.6,19.35766]
[1742964322235,1.39025085,2058.9,2058.6,19.35766]
[1742964322573,2.53145781,2058.9,2058.6,19.35766]
[1742964323392,1.40038511,2058.9,2058.6,19.35766]
[1742964323578,0.25917815,2058.9,2058.6,19.35766]
[1742964323975,1.40038511,2058.9,2058.6,19.35766]
[1742964324137,0.25917815,2058.9,2058.6,19.35766]
[1742964325070,0.25917815,2058.9,2058.7,0.7684]
[1742964325274,0.25917815,2058.9,2058.6,4.85748]
[1742964325437,0.25917815,2058.9,2058.6,5.63227771]
[1742964325638,0.25917815,2058.9,2058.7,14.5]
[1742964326471,0.25917815,2058.9,2058.6,9.71503]
[1742964326770,0.25917815,2058.9,2058.6,4.85748]
[1742964326969,2.18188511,2058.9,2058.6,4.85748]
[1742964330914,2.18188511,2058.9,2058.6,19.35748]
[1742964331885,2.18188511,2058.9,2058.6,4.85748]
[1742964333800,1.14120696,2058.7,2058.4,6.6073601]
[1742964333959,1.14120696,2058.6,2058.3,10.9981562]
[1742964334297,1.14120696,2058.5,2058.3,6.1399962]
[1742964334598,0.25583375,2058.4,2058.2,4.85854]
[1742964335107,0.25583375,2058.4,2058.2,9.71698]
[1742964335306,0.25583375,2058.4,2058.2,10.70382946]
[1742964336276,0.25583375,2058.4,2058.3,4.85837]
[1742964336510,1.14120696,2058.6,2058.3,4.85837]
[1742964336696,0.25621929,2058.5,2058.3,4.85837]
[1742964337826,0.25621929,2058.5,2058.3,19.35837]
[1742964338914,6.78022696,2058.7,2058.3,19.35837]
[1742964339109,1.39781174,2058.6,2058.3,14.5]
[1742964339971,1.14120696,2058.4,2058.1,4.85878]
[1742964340176,1.14120696,2058.3,2058.0,4.85893]
[1742964340506,3.01590347,2058.3,2058.0,4.85893]
[1742964340711,3.84400347,2058.3,2058.0,4.85893]
[1742964340890,8.70242347,2058.3,2057.9,19.35927]
[1742964341093,8.70242347,2058.3,2057.9,4.85927]
[1742964341417,1.14120696,2058.2,2057.9,4.85923]
[1742964341713,0.25306911,2058.1,2057.8,26.2716662]
[1742964342014,1.39427607,2058.1,2057.8,4.85937]
[1742964342718,4.39427607,2058.1,2057.8,4.85937]
[1742964345940,3.25306911,2058.1,2057.8,4.85937]
[1742964346091,3.25306911,2058.1,2057.9,14.5]
[1742964346425,0.25306911,2058.1,2057.9,19.35914]
[1742964346596,0.25306911,2058.1,2058.0,4.85908]
[1742964346794,0.25306911,2058.1,2057.9,19.35927]
[1742964346984,4.96930696,2058.3,2057.9,19.35927]
[1742964347184,0.2521378,2058.0,2057.9,19.35927]
[1742964347417,9.82772696,2058.3,2057.9,19.35927]
[1742964347619,0.2521378,2058.0,2057.9,19.35927]
[1742964347819,9.82772696,2058.3,2057.9,19.35927]
[1742964348011,0.2521378,2058.0,2057.9,19.35927]
[1742964348497,9.82772696,2058.3,2057.9,14.5]
[1742964348699,0.25290922,2058.2,2057.9,14.5]
[1742964349022,9.82772696,2058.3,2057.9,19.35932]
[1742964349206,0.25252353,2058.1,2057.9,14.5]
[1742964349421,11.30229753,2058.3,2057.8,9.71885]
[1742964349733,11.30229753,2058.3,2057.8,4.85939]
[1742964349940,0.25290922,2058.2,2057.8,24.21878]
[1742964350096,11.30229753,2058.3,2057.9,4.85926]
[1742964350428,1.38313897,2058.2,2057.9,4.85926]
[1742964350723,0.25290922,2058.2,2057.8,19.35939]
[1742964350897,11.30229753,2058.3,2057.8,19.35939]
[1742964351093,1.39359018,2058.2,2057.8,24.21882]
[1742964351299,1.39359018,2058.2,2057.8,19.35939]
[1742964351500,0.25238322,2058.2,2057.8,4.85939]
[1742964351729,16.16078753,2058.3,2057.8,9.71884]
[1742964352034,0.25238322,2058.2,2057.8,9.71884]
[1742964352330,16.16077753,2058.3,2057.8,9.71884]
[1742964352499,0.25238322,2058.2,2057.8,9.71884]
[1742964352701,11.30229753,2058.3,2057.8,9.71884]
[1742964352913,0.25238322,2058.2,2057.8,9.71884]
[1742964353112,11.30229753,2058.3,2057.8,9.71884]
[1742964353298,0.25238322,2058.2,2057.8,9.71884]
[1742964353498,11.30229753,2058.3,2057.8,9.71881]
[1742964353699,0.25238322,2058.2,2057.8,9.71881]
[1742964353921,11.30229753,2058.3,2057.8,9.71881]
[1742964354139,0.25238322,2058.2,2057.8,9.71881]
[1742964354352,11.30229753,2058.3,2057.8,9.71881]
[1742964354634,0.25238322,2058.2,2057.8,9.71883]
[1742964354945,11.30229753,2058.3,2057.8,9.71883]
[1742964355138,0.25238322,2058.2,2057.8,9.71883]
[1742964355339,11.30229753,2058.3,2057.8,9.71883]
[1742964355636,1.86842697,2058.2,2057.8,24.21883]
[1742964356534,4.86842697,2058.2,2057.8,24.21883]
[1742964356901,4.86842697,2058.2,2057.8,19.35939]
[1742964360133,9.72705697,2058.2,2057.8,19.35939]
[1742964361114,4.86842697,2058.2,2057.8,19.35939]
[1742964363444,9.72706697,2058.2,2057.8,19.35939]
[1742964364759,6.91542315,2058.1,2057.8,14.5]
[1742964365057,0.2516118,2058.0,2057.7,4.85978]
[1742964365428,0.2516118,2058.0,2057.7,9.71938]
[1742964365761,0.2516118,2058.0,2057.8,4.85949]
[1742964365986,9.47465375,2058.2,2057.8,4.85949]
[1742964366261,0.24863349,2057.9,2057.8,4.85949]
[1742964366424,7.85861,2058.2,2057.8,4.85949]
[1742964366625,0.24863349,2057.9,2057.8,4.85949]
[1742964366860,7.85861,2058.2,2057.8,4.85949]
[1742964367065,0.24856487,2057.9,2057.8,4.85949]
[1742964367366,7.551,2058.5,2058.0,0.7985]
[1742964367537,5.61204,2058.7,2058.3,4.85826]
[1742964367862,10.16304,2058.7,2058.3,4.85826]
[1742964368064,4.85776,2058.6,2058.2,5.65711]
[1742964368424,5.99896696,2058.6,2058.2,5.65711]
[1742964368665,10.86683725,2058.5,2058.1,14.5]
[1742964368867,6.75403696,2058.4,2058.1,14.5]
[1742964369230,1.14120696,2058.2,2058.0,0.7985]
[1742964369458,1.14120696,2058.2,2057.9,10.9992062]
[1742964369867,5.99985696,2058.2,2057.9,6.1399962]
[1742964370053,7.16114366,2058.2,2057.9,6.1399962]
[1742964370249,6.0199367,2058.2,2057.9,6.1399962]
[1742964371547,10.5709367,2058.2,2057.9,6.1399962]
[1742964372186,0.24888384,2058.1,2057.9,6.1399962]
[1742964372980,0.24888384,2058.1,2057.8,4.85945]
[1742964374956,0.24888384,2058.1,2057.8,12.3152758]
[1742964375146,0.24888384,2058.1,2057.9,4.85931]
[1742964376015,0.24888384,2058.1,2057.8,7.4558258]
[1742964376145,0.24888384,2058.1,2057.8,12.3152958]
[1742964376978,0.24888384,2058.1,2057.8,7.4558258]
[1742964379892,0.24888384,2058.1,2057.8,4.85939]
[1742964380487,0.24888384,2058.1,2057.7,6.60491804]
[1742964380488,5.89913384,2058.1,2057.7,1.74512804]
[1742964380793,5.89913384,2058.1,2057.7,0.98072804]
[1742964381008,5.89913384,2058.1,2057.7,4.85975]
[1742964381194,10.75810384,2058.1,2057.7,4.85975]
[1742964381392,5.89913384,2058.1,2057.7,4.85975]
[1742964383098,5.89913384,2058.1,2057.8,4.85952]
[1742964383099,1.04018384,2058.1,2057.8,4.85952]
[1742964383269,0.24888384,2058.1,2057.8,4.85952]
[1742964383475,0.24888384,2058.1,2057.7,5.62415]
[1742964384190,0.24888384,2058.1,2057.7,5.62404]
[1742964384390,0.24888384,2058.1,2057.8,4.85955]
[1742964386095,5.10775384,2058.1,2057.7,6.19130366]
[1742964386293,5.10775384,2058.1,2057.7,5.62404]
[1742964386466,5.91995384,2058.1,2057.7,5.62404]
[1742964388197,5.91995384,2058.1,2057.7,6.59196877]
[1742964389209,5.91995384,2058.1,2057.5,4.86006]
[1742964389210,0.8122,2057.8,2056.5,6.1399962]
[1742964389364,2.59017727,2057.9,2056.4,4.86276]
[1742964389365,0.8122,2057.0,2056.4,4.86276]
[1742964389563,0.23647444,2056.9,2056.7,2.04017727]
[1742964389775,4.574,2057.1,2056.9,4.86167]
[1742964389981,0.23493841,2057.0,2056.9,4.86167]
[1742964390187,0.23493841,2057.0,2056.8,5.66692]
[1742964390386,0.23493841,2057.0,2056.8,5.66681]
[1742964390592,0.23493841,2057.0,2056.8,12.19543562]
[1742964390789,0.23493841,2057.0,2056.8,7.33362562]
[1742964391892,0.23493841,2057.0,2056.8,12.19535562]
[1742964392098,0.23493841,2057.0,2056.8,7.33362562]
[1742964392286,0.23493841,2057.0,2056.9,14.5]
[1742964396707,0.23493841,2057.0,2056.9,22.75095745]
[1742964397074,4.86007,2057.6,2057.2,4.86083]
[1742964397276,4.86007,2057.6,2057.1,4.86116]
[1742964397277,4.86007,2057.6,2057.1,4.86102]
[1742964397492,4.86007,2057.6,2057.2,4.8609]
[1742964397805,4.86007,2057.6,2057.3,14.5]
[1742964398007,4.86007,2057.6,2057.2,4.8609]
[1742964398306,4.86007,2057.6,2057.2,4.86085]
[1742964398478,10.24409,2057.7,2057.2,19.3608]
[1742964398680,15.10408,2057.7,2057.3,4.86068]
[1742964398882,4.86004,2057.6,2057.2,22.08948595]
[1742964399429,4.86004,2057.6,2057.2,12.45036595]
[1742964399579,10.24409,2057.7,2057.2,2.72856595]
[1742964399778,10.24409,2057.7,2057.3,4.8607]
[1742964400210,15.10408,2057.7,2057.3,4.8607]
[1742964400407,17.14425727,2057.7,2057.3,4.8607]
[1742964400610,17.14425727,2057.7,2057.2,4.86082]
[1742964400611,5.07314407,2057.6,2057.2,4.86086]
[1742964400792,9.93336407,2057.6,2057.2,4.86086]
[1742964400980,5.07314407,2057.6,2057.2,8.07555195]
[1742964401181,0.21311407,2057.6,2057.3,4.86051]
[1742964401583,0.21311407,2057.6,2057.3,10.48991]
[1742964401911,0.21311407,2057.6,2057.3,10.48995]
[1742964402118,0.21311407,2057.6,2057.3,5.62931]
[1742964402413,0.21311407,2057.6,2057.3,8.06169652]
[1742964406714,4.86059,2057.4,2057.0,11.0013062]
[1742964406913,7.88094938,2057.5,2057.1,4.86116]
[1742964407108,0.21370405,2057.3,2057.1,4.86116]
[1742964407416,0.21331793,2057.2,2057.0,11.0013762]
[1742964407591,4.86051,2057.4,2057.0,11.0013762]
[1742964407791,0.21370405,2057.3,2057.0,11.0013762]
[1742964408191,0.21370405,2057.3,2057.0,4.86138]
[1742964409204,0.21370405,2057.3,2057.0,9.72266]
[1742964409521,0.21370405,2057.3,2057.0,9.72261]
[1742964409815,0.21370405,2057.3,2057.0,4.86128]
[1742964410025,0.21370405,2057.3,2057.0,9.72258]
[1742964410626,0.21370405,2057.3,2057.1,4.86117]
[1742964410926,12.52779727,2057.5,2057.1,4.86117]
[1742964411106,0.21331793,2057.2,2057.1,4.86117]
[1742964411290,14.237777,2057.5,2057.1,4.86117]
[1742964411496,0.21331793,2057.2,2057.1,4.86117]
[1742964411794,2.80707727,2057.5,2057.2,4.8609]
[1742964411993,7.66735727,2057.5,2057.1,5.62994]
[1742964413247,7.66735727,2057.5,2056.9,0.54410018]
[1742964413248,4.517003,2057.5,2056.9,0.7688]
[1742964413547,5.62788,2057.2,2056.8,11.0017162]
[1742964413821,10.19188,2057.2,2056.8,11.0017162]
[1742964414127,5.3309,2057.2,2056.9,4.86167]
[1742964414422,0.21188612,2057.1,2056.8,4.86172]
[1742964414622,0.21188612,2057.1,2056.8,9.72351]
[1742964415138,0.21188612,2057.1,2056.9,4.86164]
[1742964416649,1.45626046,2057.1,2056.7,15.2688]
[1742964416800,3.49643773,2057.1,2056.8,4.86191]
[1742964417136,3.49643773,2057.1,2056.7,20.13078]
[1742964417343,1.45626046,2057.1,2056.8,4.86173]
[1742964418242,6.31755046,2057.1,2056.7,5.63095]
[1742964420251,2.47975105,2057.0,2056.6,4.86216]
[1742964420430,2.68871641,2057.0,2056.7,4.86211]
[1742964420748,2.68871641,2057.0,2056.6,9.72446]
[1742964420918,2.68871641,2057.0,2056.6,9.72444]
[1742964421439,0.20896536,2057.0,2056.8,4.86191]
[1742964421637,4.573,2057.0,2056.9,4.86168]
[1742964421950,4.78686537,2057.0,2056.8,4.86187]
[1742964422243,0.21386537,2057.0,2056.9,4.86168]
[1742964422409,0.21386537,2057.0,2056.9,5.66858]
[1742964422608,4.573,2057.3,2057.0,4.86127]
[1742964422836,9.43374,2057.3,2056.9,25.03026]
[1742964423031,4.573,2057.3,2057.0,4.86144]
[1742964424246,0.21463751,2057.2,2057.0,4.86144]
[1742964424540,4.573,2057.3,2057.0,4.86144]
[1742964424854,0.21425146,2057.1,2057.0,4.86144]
[1742964425015,9.43375,2057.3,2056.9,19.36168]
[1742964425211,1.04343751,2057.2,2056.9,19.36168]
[1742964425928,0.21425146,2057.1,2056.9,19.36168]
[1742964426109,0.21425146,2057.1,2056.9,4.86168]
[1742964428743,0.21425146,2057.1,2056.8,4.86183]
[1742964428922,0.21425146,2057.1,2056.9,4.86167]
[1742964439870,0.21425146,2057.1,2057.0,4.86144]
[1742964440165,4.573,2057.3,2057.0,4.86144]
[1742964440368,0.19511258,2057.1,2057.0,4.86144]
[1742964440570,4.573,2057.3,2057.0,4.86144]
[1742964440733,0.19511258,2057.1,2057.0,4.86144]
[1742964440935,4.573,2057.3,2057.0,4.86144]
[1742964441137,0.19511258,2057.1,2057.0,4.86144]
[1742964441663,4.573,2057.3,2057.0,4.86144]
[1742964441869,0.19549864,2057.2,2057.0,4.86144]
[1742964442169,4.573,2057.3,2057.0,4.86144]
[1742964442371,0.19511258,2057.1,2057.0,4.86144]
[1742964442537,4.573,2057.3,2057.0,4.86144]
[1742964442734,0.19511258,2057.1,2057.0,4.86144]
[1742964442939,4.573,2057.3,2057.0,4.86144]
[1742964443140,0.19511258,2057.1,2057.0,4.86144]
[1742964443339,4.573,2057.3,2057.0,4.86144]
[1742964443872,0.19549864,2057.2,2057.0,4.86144]
[1742964444373,4.573,2057.3,2057.0,4.86144]
[1742964444576,0.19511258,2057.1,2057.0,4.86144]
[1742964444762,4.573,2057.3,2057.0,4.86144]
[1742964444964,0.19511258,2057.1,2057.0,4.86144]
[1742964445159,4.573,2057.3,2057.0,4.86144]
[1742964445368,0.19511258,2057.1,2057.0,4.86144]
[1742964445569,9.43376,2057.3,2057.0,4.86144]
[1742964446047,0.19549864,2057.2,2057.0,4.86144]
[1742964446381,9.43376,2057.3,2057.0,4.86144]
[1742964446548,0.19511258,2057.1,2057.0,4.86144]
[1742964447173,9.43376,2057.3,2057.0,19.36144]
[1742964447481,9.43376,2057.3,2056.7,6.9468962]
[1742964447482,0.8181,2057.0,2056.7,4.86194]
[1742964447683,0.8181,2057.0,2056.8,4.86189]
[1742964447854,0.19454736,2056.9,2056.8,4.86189]
[1742964448039,0.8181,2057.0,2056.8,4.86189]
[1742964448242,0.19454736,2056.9,2056.8,4.86189]
[1742964448438,0.8181,2057.0,2056.8,4.86189]
[1742964448678,0.19454736,2056.9,2056.8,4.86189]
[1742964449777,31.66831122,2056.9,2056.1,0.02]
[1742964449951,1.96178456,2056.3,2056.1,0.02]
[1742964450151,3.0,2056.8,2056.2,6.00684456]
[1742964450152,4.644,2056.6,2056.2,6.00684456]
[1742964450367,4.644,2056.6,2056.2,6.83318456]
[1742964450548,9.50649,2056.6,2056.2,10.55266]
[1742964450750,9.50649,2056.6,2056.2,10.5527]
[1742964450950,0.17249933,2056.5,2056.2,10.5527]
[1742964451472,0.17249933,2056.5,2056.2,10.55265]
[1742964451676,0.17249933,2056.5,2056.2,5.6895]
[1742964452381,0.17249933,2056.5,2056.1,9.74701]
[1742964452672,0.17249933,2056.5,2056.1,9.74686]
[1742964452878,0.17249933,2056.5,2056.1,4.88342]
[1742964453056,0.17249933,2056.5,2056.2,4.86324]
[1742964453979,0.17249933,2056.5,2056.2,9.72647]
[1742964454178,0.1217486,2056.5,2056.3,4.86309]
[1742964454380,0.16788379,2056.5,2056.3,4.86309]
[1742964455668,0.16788379,2056.5,2056.3,19.36309]
[1742964456069,0.16788379,2056.5,2056.3,14.5]
[1742964456982,0.16788379,2056.5,2056.2,9.72649]
[1742964458382,0.16788379,2056.5,2056.2,9.72641]
[1742964459584,0.16788379,2056.5,2056.2,4.86317]
[1742964461391,0.16788379,2056.5,2056.2,9.72632]
[1742964461686,0.16788379,2056.5,2056.3,4.8631]
[1742964462090,0.16788379,2056.5,2056.3,9.7262]
[1742964462395,0.16788379,2056.5,2056.3,4.8631]
[1742964465565,0.16788379,2056.5,2056.2,4.86327]
[1742964465766,0.16788379,2056.5,2056.2,4.86319]
[1742964466361,0.16788379,2056.5,2056.3,4.86303]
[1742964476202,0.16788379,2056.5,2056.2,4.86328]
[1742964476414,0.16788379,2056.5,2056.2,9.72645]
[1742964476707,0.16788379,2056.5,2056.2,9.7264]
[1742964477004,0.16788379,2056.5,2056.2,9.72637]
[1742964477515,0.16788379,2056.5,2056.2,4.86317]
[1742964478714,0.16788379,2056.5,2056.2,9.72637]
[1742964478877,0.1447525,2056.5,2056.2,9.72637]
[1742964479216,0.1447525,2056.5,2056.3,4.86308]
[1742964479526,0.1447525,2056.5,2056.2,9.72636]
[1742964480318,0.1447525,2056.5,2056.3,4.86304]
[1742964480624,0.1447525,2056.5,2056.3,5.61334]
[1742964482420,0.1447525,2056.5,2056.2,24.22636]
[1742964482633,0.1447525,2056.5,2056.2,9.72632]
[1742964483998,0.1447525,2056.5,2056.3,4.8631]
[1742964486001,0.9181525,2056.5,2056.3,4.8631]
[1742964486340,0.9181525,2056.5,2056.2,9.72637]
[1742964487030,0.9181525,2056.5,2056.3,4.86308]
[1742964487233,0.9181525,2056.5,2056.2,9.72638]